fUSD/lending_fUSD_20250609
["ID","MTS","AMOUNT","RATE_DAILY","PERIOD"]
[365168516,1749510804041,490.0,0.00017095,2]
[365168517,1749510804102,920.17,0.00017917,2]
[365168518,1749510804290,490.0,0.0001726,2]
[365168519,1749510804525,490.0,0.00017424,2]
[365168520,1749510804938,868.82,0.00016438,2]
[365168521,1749510805160,490.0,0.00017589,2]
[365168522,1749510805214,868.82,0.00016602,2]
[365168523,1749510805422,490.0,0.00017753,2]
[365168524,1749510805714,490.0,0.00017917,2]
[365168525,1749510807067,490.0,0.00016438,2]
[365168526,1749510807222,1589.96,0.00016438,2]
[365168527,1749510807378,490.0,0.00016602,2]
[365168528,1749510807489,1589.96,0.00016602,2]
[365168529,1749510807594,490.0,0.00016767,2]
[365168530,1749510807716,1589.96,0.00016767,2]
[365168531,1749510807825,861.99,0.00016438,2]
[365168532,1749510807874,490.0,0.00016931,2]
[365168533,1749510808379,861.99,0.00016602,2]
[365168534,1749510808431,490.0,0.00017095,2]
[365168535,1749510808486,1589.96,0.00016931,2]
[365168536,1749510808541,861.99,0.00016767,2]
[365168537,1749510808626,1589.96,0.00017095,2]
[365168538,1749510808675,861.99,0.00016931,2]
[365168539,1749510808725,490.0,0.0001726,2]
[365168540,1749510808777,1589.96,0.0001726,2]
[365168541,1749510808886,861.99,0.00017095,2]
[365168542,1749510808981,490.0,0.00017424,2]
[365168543,1749510809033,1589.96,0.00017424,2]
[365168544,1749510809170,861.99,0.0001726,2]
[365168545,1749510809243,490.0,0.00017589,2]
[365168546,1749510809296,1589.96,0.00017589,2]
[365168547,1749510809411,861.99,0.00017424,2]
[365168548,1749510809511,1589.96,0.00017753,2]
[365168549,1749510809681,861.99,0.00017589,2]
[365168550,1749510809761,1589.96,0.00017917,2]
[365168551,1749510809813,1802.29,0.00016438,2]
[365168552,1749510809880,490.0,0.00017753,2]
[365168553,1749510809927,861.99,0.00017753,2]
[365168554,1749510810414,861.99,0.00017917,2]
[365168555,1749510810462,480.0,0.00016438,2]
[365168556,1749510810525,490.0,0.00017917,2]
[365168557,1749510810583,1802.29,0.00016602,2]
[365168558,1749510810656,1802.29,0.00016767,2]
[365168559,1749510810893,1802.29,0.00016931,2]
[365168560,1749510811147,1802.29,0.00017095,2]
[365168561,1749510811412,1802.29,0.0001726,2]
[365168562,1749510811685,1802.29,0.00017424,2]
[365168563,1749510811740,868.82,0.00016767,2]
[365168564,1749510811993,868.82,0.00016931,2]
[365168565,1749510812095,642.35,0.00016438,2]
[365168566,1749510812223,480.0,0.00016438,2]
[365168567,1749510812273,868.82,0.00017095,2]
[365168568,1749510812322,1802.29,0.00017589,2]
[365168569,1749510812375,642.35,0.00016602,2]
[365168570,1749510812515,868.82,0.0001726,2]
[365168571,1749510812605,642.35,0.00016767,2]
[365168572,1749510812766,868.82,0.00017424,2]
[365168573,1749510812884,642.35,0.00016931,2]
[365168574,1749510812956,1802.29,0.00017753,2]
[365168575,1749510813026,868.82,0.00017589,2]
[365168576,1749510813084,642.35,0.00017095,2]
[365168577,1749510813194,1802.29,0.00017917,2]
[365168578,1749510813247,480.07854238,0.00016438,2]
[365168579,1749510813306,868.82,0.00017753,2]
[365168580,1749510813358,642.35,0.0001726,2]
[365168581,1749510813415,878.04,0.00016438,2]
[365168582,1749510813539,868.82,0.00017917,2]
[365168583,1749510813594,642.35,0.00017424,2]
[365168584,1749510813643,878.04,0.00016602,2]
[365168585,1749510813830,642.35,0.00017589,2]
[365168586,1749510813880,878.04,0.00016767,2]
[365168587,1749510814090,642.35,0.00017753,2]
[365168588,1749510814140,878.04,0.00016931,2]
[365168589,1749510814348,642.35,0.00017917,2]
[365168590,1749510814403,878.04,0.00017095,2]
[365168591,1749510814485,490.0,0.00016438,2]
[365168592,1749510814678,878.04,0.0001726,2]
[365168593,1749510814728,490.0,0.00016602,2]
[365168594,1749510814983,490.0,0.00016767,2]
[365168595,1749510815031,490.0,0.00016438,2]
[365168596,1749510815236,490.0,0.00016931,2]
[365168597,1749510815483,490.0,0.00017095,2]
[365168598,1749510815621,490.0,0.00016602,2]
[365168599,1749510815731,490.0,0.0001726,2]
[365168600,1749510815893,490.0,0.00016767,2]
[365168601,1749510815970,490.0,0.00017424,2]
[365168602,1749510816136,490.0,0.00016931,2]
[365168603,1749510816192,878.04,0.00017424,2]
[365168604,1749510816265,490.0,0.00017589,2]
[365168605,1749510816393,528.52,0.00016438,2]
[365168606,1749510816456,490.0,0.00017095,2]
[365168607,1749510816511,878.04,0.00017589,2]
[365168608,1749510816563,490.0,0.00017753,2]
[365168609,1749510816912,528.52,0.00016602,2]
[365168610,1749510816973,490.0,0.0001726,2]
[365168611,1749510817036,513.21,0.00016438,2]
[365168612,1749510817087,878.04,0.00017753,2]
[365168613,1749510817144,490.0,0.00017917,2]
[365168614,1749510817193,528.52,0.00016767,2]
[365168615,1749510817248,490.0,0.00017424,2]
[365168616,1749510817311,513.21,0.00016602,2]
[365168617,1749510817366,878.04,0.00017917,2]
[365168618,1749510817418,528.52,0.00016931,2]
[365168619,1749510817479,490.0,0.00017589,2]
[365168620,1749510817546,513.21,0.00016767,2]
[365168621,1749510817603,490.0,0.00017753,2]
[365168622,1749510817653,528.52,0.00017095,2]
[365168623,1749510817707,513.21,0.00016931,2]
[365168624,1749510817766,490.0,0.00017917,2]
[365168625,1749510817815,528.52,0.0001726,2]
[365168626,1749510817875,513.21,0.00017095,2]
[365168627,1749510817934,528.52,0.00017424,2]
[365168628,1749510818112,513.21,0.0001726,2]
[365168629,1749510818176,528.52,0.00017589,2]
[365168630,1749510818761,513.21,0.00017424,2]
[365168631,1749510818824,513.21,0.00017589,2]
[365168632,1749510818912,528.52,0.00017753,2]
[365168633,1749510818963,513.21,0.00017753,2]
[365168634,1749510819042,528.52,0.00017917,2]
[365168635,1749510819148,513.21,0.00017917,2]
[365168636,1749510820023,882.43,0.00016438,2]
[365168637,1749510820233,882.43,0.00016602,2]
[365168638,1749510820488,882.43,0.00016767,2]
[365168639,1749510820542,1460.87,0.00016438,2]
[365168640,1749510820607,490.0,0.00016438,2]
[365168641,1749510820729,882.43,0.00016931,2]
[365168642,1749510820780,1460.87,0.00016602,2]
[365168643,1749510820856,490.0,0.00016602,2]
[365168644,1749510820976,882.43,0.00017095,2]
[365168645,1749510821110,1460.87,0.00016767,2]
[365168646,1749510821233,882.43,0.0001726,2]
[365168647,1749510821371,1460.87,0.00016931,2]
[365168648,1749510821494,490.0,0.00016767,2]
[365168649,1749510821544,882.43,0.00017424,2]
[365168650,1749510821797,882.43,0.00017589,2]
[365168651,1749510822163,490.0,0.00016931,2]
[365168652,1749510822220,1460.87,0.00017095,2]
[365168653,1749510822278,882.43,0.00017753,2]
[365168654,1749510822339,490.0,0.00017095,2]
[365168655,1749510822394,1460.87,0.0001726,2]
[365168656,1749510822447,1131.91,0.00016438,2]
[365168657,1749510822506,882.43,0.00017917,2]
[365168658,1749510822565,490.0,0.0001726,2]
[365168659,1749510822615,1460.87,0.00017424,2]
[365168660,1749510822669,1131.91,0.00016602,2]
[365168661,1749510822736,490.0,0.00017424,2]
[365168662,1749510822792,1460.87,0.00017589,2]
[365168663,1749510822847,1131.91,0.00016767,2]
[365168664,1749510822928,490.0,0.00017589,2]
[365168665,1749510822983,1460.87,0.00017753,2]
[365168666,1749510823046,1131.91,0.00016931,2]
[365168667,1749510823194,490.0,0.00017753,2]
[365168668,1749510823250,1460.87,0.00017917,2]
[365168669,1749510823345,1131.91,0.00017095,2]
[365168670,1749510823463,490.0,0.00017917,2]
[365168671,1749510823605,1131.91,0.0001726,2]
[365168672,1749510823864,1131.91,0.00017424,2]
[365168673,1749510824110,1131.91,0.00017589,2]
[365168674,1749510824369,1131.91,0.00017753,2]
[365168675,1749510824633,1131.91,0.00017917,2]
[365168676,1749510824778,801.21,0.00016438,2]
[365168677,1749510825027,801.21,0.00016602,2]
[365168678,1749510825083,914.26,0.00016438,2]
[365168679,1749510825322,801.21,0.00016767,2]
[365168680,1749510825418,914.26,0.00016602,2]
[365168681,1749510825561,801.21,0.00016931,2]
[365168682,1749510825671,914.26,0.00016767,2]
[365168683,1749510825800,490.0,0.00016438,2]
[365168684,1749510825853,801.21,0.00017095,2]
[365168685,1749510825915,914.26,0.00016931,2]
[365168686,1749510826057,490.0,0.00016602,2]
[365168687,1749510826109,801.21,0.0001726,2]
[365168688,1749510826224,490.0,0.00016438,2]
[365168689,1749510826319,490.0,0.00016767,2]
[365168690,1749510826373,801.21,0.00017424,2]
[365168691,1749510826479,490.0,0.00016602,2]
[365168692,1749510826537,914.26,0.00017095,2]
[365168693,1749510826645,490.0,0.00016931,2]
[365168694,1749510826728,801.21,0.00017589,2]
[365168695,1749510826792,490.0,0.00016767,2]
[365168696,1749510826846,914.26,0.0001726,2]
[365168697,1749510826902,490.0,0.00017095,2]
[365168698,1749510826958,801.21,0.00017753,2]
[365168699,1749510827017,490.0,0.00016931,2]
[365168700,1749510827074,914.26,0.00017424,2]
[365168701,1749510827126,490.0,0.00016438,2]
[365168702,1749510827177,490.0,0.0001726,2]
[365168703,1749510827226,490.0,0.00016438,2]
[365168704,1749510827279,801.21,0.00017917,2]
[365168705,1749510827343,490.0,0.00017095,2]
[365168706,1749510827391,914.26,0.00017589,2]
[365168707,1749510827442,490.0,0.00016602,2]
[365168708,1749510827742,490.0,0.00017424,2]
[365168709,1749510827805,490.0,0.00016602,2]
[365168710,1749510827865,914.26,0.00017753,2]
[365168711,1749510827916,490.0,0.0001726,2]
[365168712,1749510827965,490.0,0.00016767,2]
[365168713,1749510828018,490.0,0.00017589,2]
[365168714,1749510828076,490.0,0.00016767,2]
[365168715,1749510828140,914.26,0.00017917,2]
[365168716,1749510828193,490.0,0.00017424,2]
[365168717,1749510828254,490.0,0.00017753,2]
[365168718,1749510828329,490.0,0.00016931,2]
[365168719,1749510828389,490.0,0.00016931,2]
[365168720,1749510828446,490.0,0.00017589,2]
[365168721,1749510828499,490.0,0.00017917,2]
[365168722,1749510828557,490.0,0.00017095,2]
[365168723,1749510828608,490.0,0.00017095,2]
[365168724,1749510828684,490.0,0.00017753,2]
[365168725,1749510828740,490.0,0.0001726,2]
[365168726,1749510829136,490.0,0.0001726,2]
[365168727,1749510829215,490.0,0.00017917,2]
[365168728,1749510829276,490.0,0.00017424,2]
[365168729,1749510829331,490.0,0.00017424,2]
[365168730,1749510829425,490.0,0.00017589,2]
[365168731,1749510829484,490.0,0.00017589,2]
[365168732,1749510829562,490.0,0.00017753,2]
[365168733,1749510829620,490.0,0.00017753,2]
[365168734,1749510829686,490.0,0.00017917,2]
[365168735,1749510829745,490.0,0.00017917,2]
[365168736,1749510830370,834.1,0.00016438,2]
[365168737,1749510830605,834.1,0.00016602,2]
[365168738,1749510830854,834.1,0.00016767,2]
[365168739,1749510830914,490.0,0.00016438,2]
[365168740,1749510831112,834.1,0.00016931,2]
[365168741,1749510831169,490.0,0.00016602,2]
[365168742,1749510831284,480.0,0.00016438,2]
[365168743,1749510831372,834.1,0.00017095,2]
[365168744,1749510831424,490.0,0.00016438,2]
[365168745,1749510831480,490.0,0.00016767,2]
[365168746,1749510831626,834.1,0.0001726,2]
[365168747,1749510831678,490.0,0.00016602,2]
[365168748,1749510831881,490.0,0.00016931,2]
[365168749,1749510831930,490.0,0.00016767,2]
[365168750,1749510831985,834.1,0.00017424,2]
[365168751,1749510832157,834.1,0.00017589,2]
[365168752,1749510832209,272.38272372,0.00016931,2]
[365168753,1749510832421,834.1,0.00017753,2]
[365168754,1749510832477,490.0,0.00017095,2]
[365168755,1749510832662,834.1,0.00017917,2]
[365168756,1749510832945,490.0,0.0001726,2]
[365168757,1749510833006,490.0,0.00017424,2]
[365168758,1749510833239,490.0,0.00017589,2]
[365168759,1749510833527,490.0,0.00017753,2]
[365168760,1749510833690,1412.43,0.00016438,2]
[365168761,1749510833778,490.0,0.00017917,2]
[365168762,1749510833943,1412.43,0.00016602,2]
[365168763,1749510834155,516.69,0.00016438,2]
[365168764,1749510834216,1412.43,0.00016767,2]
[365168765,1749510834424,516.69,0.00016602,2]
[365168766,1749510834490,1412.43,0.00016931,2]
[365168767,1749510834716,516.69,0.00016767,2]
[365168768,1749510834774,1412.43,0.00017095,2]
[365168769,1749510834954,516.69,0.00016931,2]
[365168770,1749510835008,1412.43,0.0001726,2]
[365168771,1749510835217,516.69,0.00017095,2]
[365168772,1749510835269,1412.43,0.00017424,2]
[365168773,1749510835498,1412.43,0.00017589,2]
[365168774,1749510835571,516.69,0.0001726,2]
[365168775,1749510835728,1412.43,0.00017753,2]
[365168776,1749510835786,516.69,0.00017424,2]
[365168777,1749510835978,1412.43,0.00017917,2]
[365168778,1749510836029,516.69,0.00017589,2]
[365168779,1749510836280,516.69,0.00017753,2]
[365168780,1749510836553,516.69,0.00017917,2]
[365168781,1749510836616,490.0,0.00016438,2]
[365168782,1749510836856,490.0,0.00016602,2]
[365168783,1749510837116,490.0,0.00016767,2]
[365168784,1749510837395,490.0,0.00016931,2]
[365168785,1749510837676,490.0,0.00017095,2]
[365168786,1749510837926,490.0,0.0001726,2]
[365168787,1749510838238,490.0,0.00017424,2]
[365168788,1749510838490,490.0,0.00017589,2]
[365168789,1749510838549,490.0,0.00016438,2]
[365168790,1749510838604,839.96,0.00016438,2]
[365168791,1749510838729,490.0,0.00017753,2]
[365168792,1749510838780,839.96,0.00016602,2]
[365168793,1749510838832,490.0,0.00016602,2]
[365168794,1749510838889,490.0,0.00016438,2]
[365168795,1749510838983,490.0,0.00017917,2]
[365168796,1749510839033,490.0,0.00016767,2]
[365168797,1749510839097,490.0,0.00016602,2]
[365168798,1749510839471,839.96,0.00016767,2]
[365168799,1749510839735,490.0,0.00016931,2]
[365168800,1749510839864,490.0,0.00016767,2]
[365168801,1749510839932,490.0,0.00017095,2]
[365168802,1749510839995,490.0,0.00016931,2]
[365168803,1749510840050,490.0,0.0001726,2]
[365168804,1749510840102,839.96,0.00016931,2]
[365168805,1749510840156,490.0,0.00017095,2]
[365168806,1749510840212,490.0,0.00017424,2]
[365168807,1749510840263,839.96,0.00017095,2]
[365168808,1749510840327,490.0,0.0001726,2]
[365168809,1749510840383,490.0,0.00017589,2]
[365168810,1749510840434,839.96,0.0001726,2]
[365168811,1749510840504,490.0,0.00017753,2]
[365168812,1749510840568,839.96,0.00017424,2]
[365168813,1749510840737,490.0,0.00017424,2]
[365168814,1749510840786,490.0,0.00017917,2]
[365168815,1749510840922,839.96,0.00017589,2]
[365168816,1749510841004,490.0,0.00017589,2]
[365168817,1749510841184,839.96,0.00017753,2]
[365168818,1749510841252,490.0,0.00017753,2]
[365168819,1749510841440,839.96,0.00017917,2]
[365168820,1749510841506,490.0,0.00017917,2]
[365168821,1749510841795,2648.34,0.00016438,2]
[365168822,1749510842140,2648.34,0.00016602,2]
[365168823,1749510842435,2648.34,0.00016767,2]
[365168824,1749510842494,528.96,0.00016438,2]
[365168825,1749510842687,2648.34,0.00016931,2]
[365168826,1749510842806,1222.02,0.00016438,2]
[365168827,1749510842973,528.96,0.00016602,2]
[365168828,1749510843035,2648.34,0.00017095,2]
[365168829,1749510843102,1222.02,0.00016602,2]
[365168830,1749510843219,528.96,0.00016767,2]
[365168831,1749510843282,2648.34,0.0001726,2]
[365168832,1749510843341,1222.02,0.00016767,2]
[365168833,1749510843399,572.27613224,0.00016438,2]
[365168834,1749510843504,528.96,0.00016931,2]
[365168835,1749510843554,2648.34,0.00017424,2]
[365168836,1749510843611,1222.02,0.00016931,2]
[365168837,1749510843756,528.96,0.00017095,2]
[365168838,1749510843813,2648.34,0.00017589,2]
[365168839,1749510844002,528.96,0.0001726,2]
[365168840,1749510844061,2648.34,0.00017753,2]
[365168841,1749510844312,2648.34,0.00017917,2]
[365168842,1749510844619,528.96,0.00017424,2]
[365168843,1749510844672,490.0,0.00016438,2]
[365168844,1749510844891,528.96,0.00017589,2]
[365168845,1749510844942,490.0,0.00016602,2]
[365168846,1749510845201,490.0,0.00016767,2]
[365168847,1749510845405,490.0,0.00016931,2]
[365168848,1749510845497,528.96,0.00017753,2]
[365168849,1749510845645,490.0,0.00016438,2]
[365168850,1749510845714,490.0,0.00017095,2]
[365168851,1749510845771,528.96,0.00017917,2]
[365168852,1749510845820,490.0,0.00016438,2]
[365168853,1749510845924,490.0,0.00016602,2]
[365168854,1749510845980,490.0,0.0001726,2]
[365168855,1749510846035,490.0,0.00016602,2]
[365168856,1749510846190,490.0,0.00016767,2]
[365168857,1749510846239,490.0,0.00017424,2]
[365168858,1749510846324,490.0,0.00016767,2]
[365168859,1749510846394,164.48132503,0.00016438,2]
[365168860,1749510846444,1222.02,0.00017095,2]
[365168861,1749510846496,490.0,0.00016931,2]
[365168862,1749510846543,490.0,0.00017589,2]
[365168863,1749510846599,490.0,0.00016931,2]
[365168864,1749510846683,490.0,0.00017095,2]
[365168865,1749510846730,1222.02,0.0001726,2]
[365168866,1749510846778,490.0,0.00017753,2]
[365168867,1749510846827,490.0,0.00017095,2]
[365168868,1749510846923,490.0,0.0001726,2]
[365168869,1749510846973,1222.02,0.00017424,2]
[365168870,1749510847024,490.0,0.00017917,2]
[365168871,1749510847086,490.0,0.0001726,2]
[365168872,1749510847200,490.0,0.00017424,2]
[365168873,1749510847265,1222.02,0.00017589,2]
[365168874,1749510847328,490.0,0.00017424,2]
[365168875,1749510847474,600.0,0.00013872,2]
[365168876,1749510847531,1222.02,0.00017753,2]
[365168877,1749510847590,490.0,0.00017589,2]
[365168878,1749510847676,490.0,0.00017589,2]
[365168879,1749510847750,1222.02,0.00017917,2]
[365168880,1749510847804,490.0,0.00017753,2]
[365168881,1749510847872,220.63790042,0.00017753,2]
[365168882,1749510847971,490.0,0.00017917,2]
[365168883,1749510849058,600.0,0.00015242,2]
[365168884,1749510850039,536.54,0.00016438,2]
[365168885,1749510850198,536.54,0.00016602,2]
[365168886,1749510850256,632.04,0.00016438,2]
[365168887,1749510850438,536.54,0.00016767,2]
[365168888,1749510850523,632.04,0.00016602,2]
[365168889,1749510850611,600.0,0.00016612,2]
[365168890,1749510850690,536.54,0.00016931,2]
[365168891,1749510850764,632.04,0.00016767,2]
[365168892,1749510851542,536.54,0.00017095,2]
[365168893,1749510851605,632.04,0.00016931,2]
[365168894,1749510851665,536.54,0.0001726,2]
[365168895,1749510851718,632.04,0.00017095,2]
[365168896,1749510851771,536.54,0.00017424,2]
[365168897,1749510851822,632.04,0.0001726,2]
[365168898,1749510851880,632.04,0.00017424,2]
[365168899,1749510851929,536.54,0.00017589,2]
[365168900,1749510852067,632.04,0.00017589,2]
[365168901,1749510852189,536.54,0.00017753,2]
[365168902,1749510852239,600.0,0.00017708,2]
[365168903,1749510852366,632.04,0.00017753,2]
[365168904,1749510852415,536.54,0.00017917,2]
[365168905,1749510852555,632.04,0.00017917,2]
[365168906,1749510852602,490.0,0.00016438,2]
[365168907,1749510852792,490.0,0.00016438,2]
[365168908,1749510852854,490.0,0.00016602,2]
[365168909,1749510853042,490.0,0.00016602,2]
[365168910,1749510853097,490.0,0.00016767,2]
[365168911,1749510853314,490.0,0.00016767,2]
[365168912,1749510853577,490.0,0.00016931,2]
[365168913,1749510853683,490.0,0.00016931,2]
[365168914,1749510853787,490.0,0.00017095,2]
[365168915,1749510853852,2693.42,0.00016438,2]
[365168916,1749510853930,490.0,0.00017095,2]
[365168917,1749510853985,784.8,0.00016438,2]
[365168918,1749510854054,490.0,0.0001726,2]
[365168919,1749510854198,2693.42,0.00016602,2]
[365168920,1749510854258,490.0,0.0001726,2]
[365168921,1749510854309,784.8,0.00016602,2]
[365168922,1749510854373,490.0,0.00017424,2]
[365168923,1749510854434,2693.42,0.00016767,2]
[365168924,1749510854528,490.0,0.00017424,2]
[365168925,1749510854603,784.8,0.00016767,2]
[365168926,1749510854663,970.15,0.00016438,2]
[365168927,1749510854712,490.0,0.00017589,2]
[365168928,1749510854775,2693.42,0.00016931,2]
[365168929,1749510854835,490.0,0.00017589,2]
[365168930,1749510854896,784.8,0.00016931,2]
[365168931,1749510854953,490.0,0.00017753,2]
[365168932,1749510855006,970.15,0.00016602,2]
[365168933,1749510855067,2693.42,0.00017095,2]
[365168934,1749510855132,490.0,0.00016438,2]
[365168935,1749510855185,490.0,0.00017753,2]
[365168936,1749510855237,784.8,0.00017095,2]
[365168937,1749510855316,970.15,0.00016767,2]
[365168938,1749510855386,2693.42,0.0001726,2]
[365168939,1749510855462,490.0,0.00017917,2]
[365168940,1749510855516,490.0,0.00016602,2]
[365168941,1749510855571,490.0,0.00017917,2]
[365168942,1749510855632,784.8,0.0001726,2]
[365168943,1749510855700,970.15,0.00016931,2]
[365168944,1749510855759,2693.42,0.00017424,2]
[365168945,1749510855823,490.0,0.00016767,2]
[365168946,1749510855880,784.8,0.00017424,2]
[365168947,1749510855951,970.15,0.00017095,2]
[365168948,1749510856006,490.0,0.00016931,2]
[365168949,1749510856058,784.8,0.00017589,2]
[365168950,1749510856113,970.15,0.0001726,2]
[365168951,1749510856185,490.0,0.00017095,2]
[365168952,1749510856234,784.8,0.00017753,2]
[365168953,1749510856289,2693.42,0.00017589,2]
[365168954,1749510856337,970.15,0.00017424,2]
[365168955,1749510856390,784.8,0.00017917,2]
[365168956,1749510856439,177.67479813,0.0001726,2]
[365168957,1749510856506,2693.42,0.00017753,2]
[365168958,1749510856559,970.15,0.00017589,2]
[365168959,1749510856621,2693.42,0.00017917,2]
[365168960,1749510856699,970.15,0.00017753,2]
[365168961,1749510856947,970.15,0.00017917,2]
[365168962,1749510857807,490.0,0.00016438,2]
[365168963,1749510858073,490.0,0.00016602,2]
[365168964,1749510858334,490.0,0.00016767,2]
[365168965,1749510858583,490.0,0.00016931,2]
[365168966,1749510858834,490.0,0.00017095,2]
[365168967,1749510859099,490.0,0.0001726,2]
[365168968,1749510859350,490.0,0.00017424,2]
[365168969,1749510859629,490.0,0.00017589,2]
[365168970,1749510860321,490.0,0.00017753,2]
[365168971,1749510860383,490.0,0.00017917,2]
[365168972,1749510862390,614.8,0.00016438,2]
[365168973,1749510862569,505.49,0.00016438,2]
[365168974,1749510862702,614.8,0.00016602,2]
[365168975,1749510862815,505.49,0.00016602,2]
[365168976,1749510862946,614.8,0.00016767,2]
[365168977,1749510862995,490.0,0.00016438,2]
[365168978,1749510863098,142.54784251,0.00016767,2]
[365168979,1749510863124,362.94215749,0.00016767,2]
[365168980,1749510863174,614.8,0.00016931,2]
[365168981,1749510863208,490.0,0.00016602,2]
[365168982,1749510863345,505.49,0.00016931,2]
[365168983,1749510863472,490.0,0.00016767,2]
[365168984,1749510863715,490.0,0.00016931,2]
[365168985,1749510863758,915.22,0.00016438,2]
[365168986,1749510863787,490.0,0.00016438,2]
[365168987,1749510863853,430.40253871,0.00016438,2]
[365168988,1749510864006,915.22,0.00016602,2]
[365168989,1749510864035,490.0,0.00016602,2]
[365168990,1749510864272,915.22,0.00016767,2]
[365168991,1749510864302,490.0,0.00016767,2]
[365168992,1749510864541,915.22,0.00016931,2]
[365168993,1749510864724,494.92579318,0.00016931,2]
[365168994,1749510865043,710.59,0.00016438,2]
[365168995,1749510865279,710.59,0.00016602,2]
[365168996,1749510865546,490.0,0.00016438,2]
[365168997,1749510865577,710.59,0.00016767,2]
[365168998,1749510865793,532.63085268,0.00016602,2]
[365168999,1749510865829,710.59,0.00016931,2]
[365169000,1749510866952,490.0,0.00016438,2]
[365169001,1749510867325,490.0,0.00016602,2]
[365169002,1749510867640,490.0,0.00016767,2]
[365169003,1749510867901,490.0,0.00016931,2]
[365169004,1749510869099,490.0,0.00016438,2]
[365169005,1749510869377,490.0,0.00016602,2]
[365169006,1749510869621,490.0,0.00016767,2]
[365169007,1749510869926,490.0,0.00016931,2]
[365169008,1749510870438,480.0,0.00016438,2]
[365169009,1749510871298,-182.3077415,0.00017095,2]
[365169010,1749510871978,490.0,0.00016438,2]
[365169011,1749510872231,490.0,0.00016602,2]
[365169012,1749510872496,490.0,0.00016767,2]
[365169013,1749510872733,490.0,0.00016931,2]
[365169014,1749510872818,1544.9,0.00016438,2]
[365169015,1749510873069,1544.9,0.00016602,2]